fUSD/lending_fUSD_20260402
["ID","MTS","AMOUNT","RATE_DAILY","PERIOD"]
[419313089,1775149832993,-1944.6139241,0.0001,2]
[419313090,1775149833003,-777.16139027,0.0001,2]
[419313091,1775149833012,-4883.19788016,0.0001,2]
[419313092,1775149833022,-348.51198121,0.0001,2]
[419313093,1775149833031,-289.8006139,0.00010849,2]
[419313094,1775149833040,-162.16,0.00010989,2]
[419313095,1775149833049,-195.0,0.00011,2]
[419313096,1775149833058,-600.0,0.00011,2]
[419313097,1775149833067,-300.57004179,0.00011,2]
[419313098,1775149833077,-1872.39255751,0.0001113,2]
[419313099,1775149833133,-1500.36,0.0001113,2]
[419313103,1775149840138,-1768.2999153,0.0001113,2]
[419313104,1775149840148,-1200.0,0.00011659,2]
[419313105,1775149840159,-193.0,0.0001166,2]
[419313106,1775149840171,-250.0,0.0001166,2]
[419313107,1775149840181,-300.0,0.00011933,2]
[419313108,1775149840191,-4010.64862103,0.00011934,2]
[419313109,1775149840202,-291.91484172,0.00011934,2]
[419313110,1775149840242,-697.43653725,0.00011934,2]
[419313111,1775149840251,-83.62448181,0.00011934,2]
[419313112,1775149840263,-166.37551819,0.00011934,2]
[419313113,1775149840272,-195.0,0.00011934,2]
[419313114,1775149840282,-250.0,0.00011934,2]
[419313115,1775149840292,-63.28985904,0.0001266,2]
[419313116,1775149840683,-195.77014096,0.0001266,2]
[419313117,1775149840697,-1600.0,0.00012732,2]
[419313118,1775149840708,-2000.0,0.00012758,2]
[419313119,1775149840720,-341.0,0.00012786,2]
[419313120,1775149840729,-1680.0,0.00012825,2]
[419313121,1775149840738,-151.0,0.0001298,2]
[419313122,1775149840748,-150.0,0.00012989,2]
[419313123,1775149840757,-200.0,0.0001299,2]
[419313124,1775149840767,-500.0,0.0001299,2]
[419313125,1775149840778,-500.0,0.0001299,2]
[419313126,1775149840787,-500.0,0.0001299,2]
[419313127,1775149840796,-500.0,0.0001299,2]
[419313128,1775149840806,-500.0,0.0001299,2]
[419313129,1775149840817,-500.0,0.0001299,2]
[419313130,1775149840827,-500.0,0.0001299,2]
[419313131,1775149840836,-493.51314513,0.0001299,2]
[419313132,1775149840847,-151.0,0.0001299,2]
[419313133,1775149840858,-151.0,0.0001299,2]
[419313134,1775149840867,-151.0,0.0001299,2]
[419313135,1775149840877,-151.0,0.0001299,2]
[419313136,1775149840886,-151.0,0.0001299,2]
[419313137,1775149840896,-151.0,0.0001299,2]
[419313138,1775149840905,-151.0,0.0001299,2]
[419313139,1775149840915,-151.0,0.0001299,2]
[419313140,1775149840926,-151.0,0.0001299,2]
[419313141,1775149840935,-151.0,0.0001299,2]
[419313142,1775149840944,-171.10274431,0.0001299,2]
[419313144,1775149840954,-406.33462505,0.00012997,2]
[419313145,1775149840963,-28756.46,0.00012998,2]
[419313146,1775149840972,-250.0,0.00013,2]
[419313147,1775149840982,-150.0,0.00013,2]
[419313148,1775149840991,-591.85280837,0.00013,2]
[419313149,1775149841000,-500.0,0.00013017,2]
[419313151,1775149841010,-150.0,0.00013032,2]
[419313153,1775149841020,-200.0,0.00013032,2]
[419313154,1775149841029,-420.0,0.000131,2]
[419313155,1775149841038,-6179.96498233,0.000132,2]
[419313156,1775149841047,-500.0,0.0001326,2]
[419313157,1775149841056,-500.0,0.0001326,2]
[419313158,1775149841065,-500.0,0.0001326,2]
[419313159,1775149841074,-500.0,0.0001326,2]
[419313160,1775149841083,-500.0,0.0001326,2]
[419313161,1775149841093,-500.0,0.0001326,2]
[419313162,1775149841103,-500.0,0.0001326,2]
[419313163,1775149841112,-500.0,0.0001326,2]
[419313164,1775149841123,-500.0,0.0001326,2]
[419313165,1775149841132,-500.0,0.0001326,2]
[419313166,1775149841142,-500.0,0.0001326,2]
[419313167,1775149841152,-500.0,0.0001326,2]
[419313168,1775149841161,-500.0,0.0001326,2]
[419313169,1775149841171,-500.0,0.0001326,2]
[419313170,1775149841181,-500.0,0.0001326,2]
[419313171,1775149841192,-500.0,0.0001326,2]
[419313172,1775149841201,-500.0,0.0001326,2]
[419313173,1775149841210,-500.0,0.0001326,2]
[419313174,1775149841220,-500.0,0.0001326,2]
[419313175,1775149841229,-500.0,0.0001326,2]
[419313176,1775149841239,-500.0,0.0001326,2]
[419313177,1775149841248,-500.0,0.0001326,2]
[419313178,1775149841258,-500.0,0.0001326,2]
[419313179,1775149841268,-500.0,0.0001326,2]
[419313180,1775149841277,-500.0,0.0001326,2]
[419313181,1775149841287,-500.0,0.0001326,2]
[419313182,1775149841296,-500.0,0.0001326,2]
[419313183,1775149841305,-500.0,0.0001326,2]
[419313184,1775149841315,-151.0,0.0001326,2]
[419313185,1775149841325,-500.0,0.0001326,2]
[419313186,1775149841334,-500.0,0.0001326,2]
[419313187,1775149841344,-500.0,0.0001326,2]
[419313188,1775149841353,-500.0,0.0001326,2]
[419313189,1775149841363,-500.0,0.0001326,2]
[419313190,1775149841372,-174.61919141,0.0001326,2]
[419313191,1775149841382,-500.0,0.0001326,2]
[419313192,1775149841392,-250.0,0.0001326,2]
[419313193,1775149841402,-250.0,0.0001326,2]
[419313194,1775149841411,-250.0,0.0001326,2]
[419313195,1775149841420,-250.0,0.0001326,2]
[419313196,1775149841430,-250.0,0.0001326,2]
[419313197,1775149841439,-250.0,0.0001326,2]
[419313198,1775149841448,-250.0,0.0001326,2]
[419313199,1775149841458,-200.0,0.0001326,2]
[419313200,1775149841468,-250.0,0.0001326,2]
[419313201,1775149841478,-250.0,0.0001326,2]
[419313203,1775149841488,-250.0,0.0001326,2]
[419313204,1775149841497,-250.0,0.0001326,2]
[419313205,1775149841506,-290.26104003,0.0001326,2]
[419313206,1775149841516,-743.50770149,0.0001326,2]
[419313207,1775149841525,-170.0,0.0001326,2]
[419313208,1775149841535,-170.0,0.0001326,2]
[419313210,1775149841544,-170.0,0.0001326,2]
[419313212,1775149841554,-170.0,0.0001326,2]
[419313214,1775149841563,-170.0,0.0001326,2]
[419313215,1775149841573,-170.0,0.0001326,2]
[419313216,1775149841582,-170.0,0.0001326,2]
[419313217,1775149841591,-170.0,0.0001326,2]
[419313218,1775149841600,-170.0,0.0001326,2]
[419313219,1775149841609,-170.0,0.0001326,2]
[419313220,1775149841618,-170.0,0.0001326,2]
[419313221,1775149841628,-500.0,0.00013315,2]
[419313222,1775149841636,-151.0,0.00013315,2]
[419313223,1775149841646,-500.0,0.0001337,2]
[419313224,1775149841656,-151.0,0.0001337,2]
[419313225,1775149841665,-365.47,0.000134,2]
[419313226,1775149841675,-500.0,0.00013425,2]
[419313227,1775149841684,-151.0,0.00013425,2]
[419313228,1775149841694,-500.0,0.0001348,2]
[419313229,1775149841703,-151.0,0.0001348,2]
[419313230,1775149841712,-520.0,0.000135,2]
[419313231,1775149841722,-1333.37,0.00013524,2]
[419313232,1775149841731,-250.0,0.00013529,2]
[419313233,1775149841741,-500.0,0.00013535,2]
[419313234,1775149841751,-151.0,0.00013535,2]
[419313235,1775149841760,-200.0,0.00013538,2]
[419313236,1775149841769,-500.0,0.0001359,2]
[419313237,1775149841778,-151.0,0.0001359,2]
[419313238,1775149841787,-500.0,0.00013645,2]
[419313239,1775149841796,-151.0,0.00013645,2]
[419313240,1775149841806,-150.0,0.00013699,2]
[419313241,1775149841815,-2095.52,0.00013699,2]
[419313242,1775149841825,-205.16,0.00013699,2]
[419313243,1775149841834,-7348.76,0.00013699,2]
[419313244,1775149841843,-4817.47,0.00013699,2]
[419313245,1775149841853,-151.75,0.00013699,2]
[419313246,1775149841863,-500.0,0.000137,2]
[419313247,1775149841872,-151.0,0.000137,2]
[419313248,1775149841881,-505.86563859,0.00013755,2]
[419313249,1775149841890,-151.0,0.00013755,2]
[419313250,1775149841901,-2600.0,0.000138,5]
[419313251,1775149841911,-181.08010149,0.00013808,2]
[419313252,1775149841920,-771.01748645,0.00013808,2]
[419313253,1775149841930,-151.0,0.0001381,2]
[419313254,1775149841941,-1000.0,0.00013864,2]
[419313255,1775149841951,-353.19,0.0001387,2]
[419313256,1775149841961,-491.53,0.0001387,2]
[419313257,1775149841972,-5300.0,0.000139,5]
[419313258,1775149841982,-9601.90631203,0.00014006,2]
[419313259,1775149841991,-255.0,0.00014093,2]
[419313260,1775149842001,-2351.0,0.00014107,2]
[419313261,1775149842010,-393.50672753,0.00014145,2]
[419313262,1775149842019,-173.9575,0.000142,7]
[419313263,1775149842028,-879.65842586,0.00014221,2]
[419313264,1775149842038,-16731.47365404,0.00014229,2]
[419313265,1775149842048,-305.5253928,0.00014274,2]
[419313266,1775149842058,-1600.0,0.00014323,2]
[419313267,1775149842068,-29775.35621579,0.00014329,2]
[419313268,1775149842079,-3203.68788222,0.00014329,2]
[419313269,1775149842089,-371.0725815,0.0001433,2]
[419313270,1775149842098,-249.72871888,0.0001433,2]
[419313271,1775149842107,-468.27579115,0.0001433,2]
[419313272,1775149842116,-581.51714454,0.00014339,2]
[419313273,1775149842126,-2000.0,0.00014353,2]
[419313274,1775149842135,-187.78006525,0.00014356,2]
[419313275,1775149842144,-799.54513345,0.00014356,2]
[419313276,1775149842154,-202.123655,0.00014357,7]
[419313277,1775149842163,-903.14,0.00014369,2]
[419313278,1775149842172,-587.0,0.00014382,2]
[419313279,1775149842182,-2095.52,0.00014384,2]
[419313280,1775149842192,-151.0,0.00014402,2]
[419313281,1775149842201,-345.67825208,0.00014404,2]
[419313282,1775149842212,-500.0,0.00014404,2]
[419313283,1775149842222,-500.0,0.00014404,2]
[419313284,1775149842231,-474.5040175,0.00014404,2]
[419313285,1775149842240,-15297.3980695,0.00014405,2]
[419313286,1775149842249,-1106.4737577,0.00014405,2]
[419313287,1775149842258,-3265.5436715,0.00014405,2]
[419313288,1775149842268,-160.0,0.00014415,7]
[419313289,1775149842277,-425.214134,0.00014415,7]
[419313290,1775149842286,-690.428269,0.00014415,7]
[419313291,1775149842295,-2873.03,0.00014419,2]
[419313292,1775149842304,-2873.03,0.00014419,2]
[419313293,1775149842314,-2873.03,0.00014419,2]
[419313294,1775149842323,-2873.03,0.00014419,2]
[419313295,1775149842333,-188.97105713,0.00014419,2]
[419313296,1775149842342,-2873.03,0.00014419,2]
[419313297,1775149842352,-151.0,0.00014426,2]
[419313298,1775149842362,-150.31858386,0.00014427,2]
[419313299,1775149842372,-500.0,0.00014427,2]
[419313300,1775149842381,-500.0,0.00014428,2]
[419313301,1775149842390,-500.0,0.00014428,2]
[419313302,1775149842401,-500.0,0.00014428,2]
[419313303,1775149842410,-500.0,0.00014428,2]
[419313304,1775149842420,-500.0,0.00014428,2]
[419313305,1775149842432,-508.65862639,0.00014428,2]
[419313306,1775149842442,-500.0,0.00014428,2]
[419313307,1775149842452,-500.0,0.00014428,2]
[419313308,1775149842461,-500.0,0.00014428,2]
[419313309,1775149842470,-500.0,0.00014428,2]
[419313310,1775149842480,-500.0,0.00014428,2]
[419313311,1775149842490,-500.0,0.00014428,2]
[419313312,1775149842499,-500.0,0.00014428,2]
[419313313,1775149842508,-500.0,0.00014428,2]
[419313314,1775149842518,-500.0,0.00014428,2]
[419313315,1775149842527,-500.0,0.00014428,2]
[419313316,1775149842536,-500.0,0.00014428,2]
[419313317,1775149842546,-500.0,0.00014428,2]
[419313318,1775149842555,-500.0,0.00014428,2]
[419313319,1775149842564,-500.0,0.00014428,2]
[419313320,1775149842574,-500.0,0.00014428,2]
[419313321,1775149842583,-500.0,0.00014428,2]
[419313322,1775149842592,-262.05217327,0.00014428,2]
[419313323,1775149842602,-500.0,0.00014428,2]
[419313324,1775149842611,-500.0,0.00014428,2]
[419313325,1775149842621,-500.0,0.00014428,2]
[419313326,1775149842631,-500.0,0.00014428,2]
[419313327,1775149842641,-500.0,0.00014428,2]
[419313328,1775149842650,-500.0,0.00014428,2]
[419313329,1775149842660,-500.0,0.00014428,2]
[419313330,1775149842671,-500.0,0.00014428,2]
[419313331,1775149842680,-500.0,0.00014428,2]
[419313332,1775149842690,-500.0,0.00014428,2]
[419313335,1775149842701,-500.0,0.00014428,2]
[419313337,1775149842711,-509.91183271,0.00014428,2]
[419313338,1775149842721,-500.0,0.00014428,2]
[419313339,1775149842731,-500.0,0.00014428,2]
[419313340,1775149842740,-500.0,0.00014428,2]
[419313341,1775149842749,-500.0,0.00014428,2]
[419313342,1775149842758,-500.0,0.00014428,2]
[419313343,1775149842767,-500.0,0.00014428,2]
[419313345,1775149842776,-500.0,0.00014428,2]
[419313348,1775149842786,-500.0,0.00014428,2]
[419313351,1775149842795,-500.0,0.00014428,2]
[419313353,1775149842804,-500.0,0.00014428,2]
[419313355,1775149842814,-500.0,0.00014428,2]
[419313357,1775149842823,-500.0,0.00014428,2]
[419313358,1775149842833,-500.0,0.00014428,2]
[419313359,1775149842842,-500.0,0.00014428,2]
[419313360,1775149842853,-500.0,0.00014428,2]
[419313361,1775149842863,-500.0,0.00014428,2]
[419313362,1775149842875,-500.0,0.00014428,2]
[419313363,1775149842884,-500.0,0.00014428,2]
[419313364,1775149842894,-500.0,0.00014428,2]
[419313365,1775149842903,-500.0,0.00014428,2]
[419313367,1775149842912,-500.0,0.00014428,2]
[419313368,1775149842922,-500.0,0.00014428,2]
[419313369,1775149842932,-500.0,0.00014428,2]
[419313370,1775149842941,-500.0,0.00014428,2]
[419313371,1775149842950,-500.0,0.00014428,2]
[419313372,1775149842961,-500.0,0.00014428,2]
[419313373,1775149842971,-500.0,0.00014428,2]
[419313374,1775149842980,-500.0,0.00014428,2]
[419313375,1775149842990,-500.0,0.00014428,2]
[419313376,1775149842999,-500.0,0.00014428,2]
[419313377,1775149843009,-325.64720677,0.00014428,2]
[419313378,1775149843018,-500.0,0.00014428,2]
[419313379,1775149843028,-500.0,0.00014428,2]
[419313380,1775149843038,-500.0,0.00014428,2]
[419313381,1775149843048,-500.0,0.00014428,2]
[419313382,1775149843058,-513.08377525,0.00014428,2]
[419313383,1775149843068,-644.83329093,0.00014428,2]
[419313384,1775149843078,-238.24330539,0.00014428,2]
[419313385,1775149843088,-227.35797764,0.00014428,2]
[419313386,1775149843098,-453.39306203,0.00014428,2]
[419313387,1775149843107,-666.0,0.00014428,2]
[419313388,1775149843117,-2082.0,0.00014429,5]
[419313389,1775149843127,-151.0,0.00014429,2]
[419313390,1775149843137,-318037.965,0.00014429,2]
[419313391,1775149843147,-869118.8819,0.00014429,2]
[419313392,1775149843158,-264.49213527,0.0001443,2]
[419313393,1775149843168,-200.0,0.00014472,2]
[419313394,1775149843177,-198.06220285,0.00014472,2]
[419313395,1775149843187,-321.42133659,0.00014472,2]
[419313396,1775149843197,-155.0,0.00014472,3]
[419313397,1775149843207,-158.0,0.00014472,3]
[419313398,1775149843217,-166.0,0.00014472,3]
[419313399,1775149843231,-500.0,0.00014473,2]
[419313400,1775149843241,-500.0,0.00014473,2]
[419313401,1775149843250,-500.0,0.00014473,2]
[419313402,1775149843260,-500.0,0.00014473,2]
[419313403,1775149843270,-500.30491238,0.00014473,2]
[419313404,1775149843280,-500.0,0.00014473,2]
[419313405,1775149843289,-500.0,0.00014473,2]
[419313406,1775149843299,-502.20053042,0.00014473,2]
[419313407,1775149843309,-500.0,0.00014473,2]
[419313408,1775149843318,-500.0,0.00014473,2]
[419313409,1775149843328,-502.25926533,0.00014473,2]
[419313410,1775149843338,-500.0,0.00014473,2]
[419313411,1775149843347,-16731.47365395,0.00014526,2]
[419313412,1775149843357,-151.0,0.00014526,2]
[419313413,1775149843368,-151.0,0.00014526,2]
[419313414,1775149843377,-151.0,0.00014526,2]
[419313415,1775149843386,-1090.37665391,0.00014528,5]
[419313416,1775149843397,-500.0,0.00014528,2]
[419313417,1775149843406,-500.0,0.00014528,2]
[419313418,1775149843416,-500.0,0.00014528,2]
[419313419,1775149843426,-500.0,0.00014528,2]
[419313420,1775149843436,-500.0,0.00014528,2]
[419313421,1775149843445,-500.0,0.00014528,2]
[419313422,1775149843455,-319.28218799,0.00014528,2]
[419313423,1775149843465,-2146.748,0.00014566,2]
[419313424,1775149843475,-186.8,0.00014566,2]
[419313425,1775149843485,-439.08278245,0.00014579,2]
[419313426,1775149843495,-200.0,0.00014617,2]
[419313427,1775149843505,-785.32,0.00014709,2]
[419313428,1775149843516,-259.637764,0.0001472,7]
[419313429,1775149843526,-334.689306,0.00014767,7]
[419313430,1775149843536,-153.57858069,0.00014812,2]
[419313431,1775149843546,-16731.47365395,0.00014823,2]
[419313432,1775149843555,-343.56410071,0.00014898,2]
[419313433,1775149843565,-166.66,0.00014899,2]
[419313434,1775149843575,-194.72792766,0.00014904,2]
[419313435,1775149843585,-668.93096053,0.00014904,2]
[419313436,1775149843596,-232.90309995,0.00014941,2]
[419313437,1775149843605,-785.32,0.00014983,2]
[419313438,1775149843616,-259.06,0.00014988,2]
[419313439,1775149843625,-300.0,0.00015,2]
[419313440,1775149843634,-1000.0,0.00015021,2]
[419313441,1775149843644,-263.24916206,0.00015021,2]
[419313442,1775149843653,-1000.0,0.00015021,2]
[419313443,1775149843663,-1000.0,0.00015021,2]
[419313444,1775149843672,-1000.0,0.00015021,2]
[419313445,1775149843686,-1000.0,0.00015021,2]
[419313447,1775149843696,-501.4622297,0.00015021,2]
[419313449,1775149843706,-1000.0,0.00015021,2]
[419313451,1775149843716,-1645.0,0.00015055,5]
[419313452,1775149843726,-248.44,0.00015068,2]
[419313453,1775149843738,-2095.52,0.00015068,2]
[419313454,1775149843748,-800.0,0.00015068,2]
[419313455,1775149843757,-16731.47365395,0.00015119,2]
[419313456,1775149843766,-579.837456,0.00015136,7]
[419313457,1775149843776,-10000.0,0.00015205,2]
[419313458,1775149843785,-151.0,0.00015243,2]
[419313459,1775149843795,-151.0,0.00015254,2]
[419313460,1775149843804,-901.25,0.00015257,2]
[419313461,1775149843815,-597.15847285,0.00015276,2]
[419313462,1775149843824,-150.0,0.00015288,2]
[419313463,1775149843833,-150.0,0.00015288,2]
[419313464,1775149843842,-150.0,0.00015288,2]
[419313465,1775149843851,-150.0,0.00015288,2]
[419313466,1775149843861,-150.0,0.00015288,2]
[419313467,1775149843871,-256.16266046,0.00015288,2]
[419313468,1775149843880,-150.0,0.00015288,2]
[419313469,1775149843889,-150.0,0.00015288,2]
[419313470,1775149843899,-150.0,0.00015288,2]
[419313471,1775149843908,-150.0,0.00015288,2]
[419313472,1775149843918,-150.0,0.00015288,2]
[419313473,1775149843928,-433.0,0.00015288,2]
[419313474,1775149843938,-333.18,0.00015296,2]
[419313475,1775149843948,-350.0,0.00015321,2]
[419313476,1775149843957,-150.0,0.0001533,2]
[419313477,1775149843967,-150.0,0.00015336,2]
[419313478,1775149843977,-150.0,0.00015339,2]
[419313479,1775149843987,-150.0,0.00015339,2]
[419313480,1775149843996,-150.0,0.00015344,2]
[419313481,1775149844007,-150.0,0.00015362,2]
[419313482,1775149844017,-1125.47488,0.0001537,2]
[419313483,1775149844027,-1125.47488,0.0001537,2]
[419313484,1775149844036,-1125.47489,0.0001537,2]
[419313485,1775149844046,-150.0,0.00015373,2]
[419313486,1775149844055,-166.66,0.00015375,2]
[419313487,1775149844064,-150.0,0.00015385,2]
[419313488,1775149844074,-150.0,0.00015391,2]
[419313489,1775149844083,-150.0,0.00015391,2]
[419313490,1775149844092,-529.28576111,0.00015396,2]
[419313491,1775149844102,-500.0,0.00015396,2]
[419313492,1775149844112,-500.0,0.00015396,2]
[419313493,1775149844121,-500.0,0.00015396,2]
[419313494,1775149844130,-500.0,0.00015396,2]
[419313495,1775149844139,-500.0,0.00015396,2]
[419313496,1775149844149,-500.0,0.00015396,2]
[419313497,1775149844159,-500.0,0.00015396,2]
[419313498,1775149844169,-500.0,0.00015396,2]
[419313499,1775149844178,-200.0,0.00015397,2]
[419313500,1775149844188,-210.109105,0.00015397,2]
[419313501,1775149844197,-150.0,0.00015401,2]
[419313502,1775149844206,-150.0,0.00015415,2]
[419313503,1775149844215,-150.0,0.00015418,2]
[419313504,1775149844224,-500.0,0.00015421,2]
[419313505,1775149844234,-500.0,0.00015421,2]
[419313506,1775149844243,-500.0,0.00015421,2]
[419313507,1775149844253,-500.0,0.00015421,2]
[419313508,1775149844263,-503.96151551,0.00015421,2]
[419313509,1775149844272,-500.0,0.00015421,2]
[419313510,1775149844282,-488.21639013,0.00015421,2]
[419313511,1775149844291,-500.0,0.00015421,2]
[419313512,1775149844302,-500.0,0.00015421,2]
[419313513,1775149844312,-500.0,0.00015421,2]
[419313514,1775149844321,-500.0,0.00015421,2]
[419313515,1775149844330,-500.0,0.00015421,2]
[419313516,1775149844339,-500.0,0.00015421,2]
[419313517,1775149844348,-500.0,0.00015421,2]
[419313518,1775149844358,-500.0,0.00015421,2]
[419313519,1775149844367,-500.0,0.00015421,2]
[419313520,1775149844376,-500.0,0.00015421,2]
[419313521,1775149844386,-500.0,0.00015421,2]
[419313522,1775149844395,-561.59815036,0.00015421,2]
[419313523,1775149844404,-500.0,0.00015421,2]
[419313524,1775149844413,-500.0,0.00015421,2]
[419313525,1775149844422,-500.0,0.00015421,2]
[419313526,1775149844432,-500.0,0.00015421,2]
[419313527,1775149844441,-500.0,0.00015421,2]
[419313528,1775149844450,-500.0,0.00015421,2]
[419313529,1775149844459,-500.0,0.00015421,2]
[419313530,1775149844468,-2058.0,0.00015421,5]
[419313531,1775149844478,-150.0,0.00015433,2]
[419313532,1775149844487,-150.0,0.00015435,2]
[419313533,1775149844496,-150.0,0.00015442,2]
[419313534,1775149844505,-150.0,0.00015442,2]
[419313535,1775149844515,-150.0,0.00015442,2]
[419313536,1775149844523,-201.93286099,0.00015452,2]
[419313537,1775149844532,-881.27,0.00015457,2]
[419313538,1775149844542,-150.0,0.00015458,2]
[419313539,1775149844552,-150.0,0.00015458,2]
[419313540,1775149844561,-150.0,0.00015482,2]
[419313541,1775149844570,-150.0,0.00015494,2]
[419313542,1775149844579,-150.0,0.00015494,2]
[419313543,1775149844589,-201.7414,0.000155,12]
[419313544,1775149844598,-150.0,0.000155,2]
[419313545,1775149844607,-259.06,0.00015505,2]
[419313546,1775149844617,-3552.26,0.00015507,2]
[419313547,1775149844627,-150.0,0.00015509,2]
[419313548,1775149844636,-150.0,0.00015514,2]
[419313549,1775149844645,-737.0,0.00015518,2]
[419313550,1775149844654,-356.515,0.00015521,2]
[419313551,1775149844663,-1000.0,0.00015521,2]
[419313552,1775149844672,-889.957,0.00015521,2]
[419313553,1775149844682,-1125.47488,0.00015521,2]
[419313554,1775149844691,-1125.47488,0.00015521,2]
[419313555,1775149844700,-1125.47488,0.00015521,2]
[419313556,1775149844710,-150.0,0.0001553,2]
[419313557,1775149844979,-150.0,0.00015542,2]
[419313558,1775149844989,-150.0,0.00015545,2]
[419313559,1775149844998,-150.0,0.00015545,2]
[419313560,1775149845008,-150.0,0.00015549,2]
[419313561,1775149845018,-350.0,0.00015556,2]
[419313562,1775149845027,-511.5547996,0.00015568,2]
[419313563,1775149845036,-561.25077082,0.00015568,2]
[419313564,1775149845046,-1500.0,0.00015568,2]
[419313565,1775149845055,-1500.0,0.00015568,2]
[419313566,1775149845064,-1298.88224457,0.00015568,2]
[419313567,1775149845074,-339.64282887,0.00015568,2]
[419313568,1775149845083,-150.0,0.00015571,2]
[419313569,1775149845093,-150.0,0.00015579,2]
[419313570,1775149845102,-150.0,0.00015583,2]
[419313571,1775149845112,-150.0,0.00015585,2]
[419313572,1775149845122,-150.0,0.00015597,2]
[419313573,1775149845131,-150.0,0.00015597,2]
[419313574,1775149845141,-150.0,0.00015597,2]
[419313575,1775149845150,-150.0,0.00015627,2]
[419313576,1775149845160,-150.0,0.00015627,2]
[419313577,1775149845169,-150.0,0.00015627,2]
[419313578,1775149845179,-150.0,0.00015648,2]
[419313579,1775149845188,-150.0,0.00015648,2]
[419313580,1775149845197,-150.0,0.00015657,2]
[419313581,1775149845207,-477.38172344,0.0001566,2]
[419313582,1775149845216,-150.0,0.0001567,2]
[419313583,1775149845225,-150.0,0.00015676,2]
[419313584,1775149845235,-150.0,0.0001568,2]
[419313585,1775149845244,-150.0,0.00015684,2]
[419313586,1775149845254,-150.0,0.00015699,2]
[419313587,1775149845265,-150.0,0.00015699,2]
[419313588,1775149845275,-150.0,0.00015712,2]
[419313589,1775149845285,-150.0,0.00015724,2]
[419313590,1775149845294,-150.0,0.00015731,2]
[419313591,1775149845303,-880.73,0.00015731,2]
[419313592,1775149845312,-150.0,0.00015741,2]
[419313593,1775149845322,-150.0,0.00015751,2]
[419313594,1775149845332,-150.0,0.00015751,2]
[419313595,1775149845341,-150.0,0.00015751,2]
[419313596,1775149845351,-2095.52,0.00015753,2]
[419313597,1775149845361,-150.0,0.00015755,2]
[419313598,1775149845370,-29775.35621571,0.0001577,2]
[419313599,1775149845379,-150.0,0.00015773,2]
[419313600,1775149845389,-823.0,0.00015789,2]
[419313601,1775149845400,-435.89138838,0.00015795,2]
[419313602,1775149845411,-150.0,0.00015797,2]
[419313603,1775149845420,-150.0,0.00015797,2]
[419313604,1775149845430,-8000.0,0.000158,5]
[419313605,1775149845439,-4441.34454092,0.000158,2]
[419313606,1775149845450,-1890.0,0.000158,2]
[419313607,1775149845460,-150.0,0.00015802,2]
[419313608,1775149845469,-150.0,0.00015802,2]
[419313609,1775149845478,-150.0,0.00015805,2]
[419313610,1775149845488,-150.0,0.0001581,2]
[419313611,1775149845497,-350.0,0.0001582,2]
[419313612,1775149845507,-150.0,0.00015822,2]
[419313613,1775149845517,-156.8,0.00015823,2]